[Event "Titled Tuesday Blitz August 16 Late 2022"]
[White "Kambrath, Yannick"]
[Black "Bodnar, Nikolay"]
[WhiteFideId "20632525"]
[BlackFideId "14106469"]
[WhiteElo "2236"]
[BlackElo "2283"]
[Result "1-0"]
[Round "10"]
[TimeControl "180+1"]
[Date "2022.08.16"]
[WhiteClock "0:01:09"]
[BlackClock "0:00:04"]

1. e4 {[%clk 0:03:00]}  c6 {[%clk 0:02:57]} 2. d4 {[%clk 0:02:59]}  d5 {[%clk 0:02:58]} 3. f3 {[%clk 0:02:59]}  e6 {[%clk 0:02:57]} 4. Nc3 {[%clk 0:02:58]}  Qb6 {[%clk 0:02:56]} 5. Rb1 {[%clk 0:02:52]}  Bb4 {[%clk 0:02:52]} 6. Be3 {[%clk 0:02:51]}  Nf6 {[%clk 0:02:47]} 7. Bd3 {[%clk 0:02:50]}  e5 {[%clk 0:02:43]} 8. Ne2 {[%clk 0:02:50]}  exd4 {[%clk 0:02:42]} 9. Bxd4 {[%clk 0:02:50]}  c5 {[%clk 0:02:29]} 10. Bxf6 {[%clk 0:02:48]}  Qxf6 {[%clk 0:02:30]} 11. O-O {[%clk 0:02:40]}  Bxc3 {[%clk 0:02:19]} 12. Nxc3 {[%clk 0:02:39]}  d4 {[%clk 0:02:17]} 13. Nd5 {[%clk 0:02:40]}  Qd8 {[%clk 0:02:17]} 14. c3 {[%clk 0:02:38]}  O-O {[%clk 0:02:10]} 15. cxd4 {[%clk 0:02:37]}  cxd4 {[%clk 0:02:10]} 16. Qa4 {[%clk 0:02:37]}  Nc6 {[%clk 0:02:09]} 17. Bb5 {[%clk 0:02:36]}  Be6 {[%clk 0:02:06]} 18. Bxc6 {[%clk 0:02:30]}  bxc6 {[%clk 0:02:07]} 19. Qxc6 {[%clk 0:02:31]}  Rc8 {[%clk 0:02:01]} 20. Qb5 {[%clk 0:02:31]}  Bxd5 {[%clk 0:01:14]} 21. exd5 {[%clk 0:02:25]}  Qd6 {[%clk 0:01:10]} 22. Rbd1 {[%clk 0:02:22]}  Rb8 {[%clk 0:01:01]} 23. Qa5 {[%clk 0:02:11]}  Qf4 {[%clk 0:00:41]} 24. Qd2 {[%clk 0:02:08]}  Qe3+ {[%clk 0:00:36]} 25. Kh1 {[%clk 0:02:05]}  Rfd8 {[%clk 0:00:30]} 26. Qxd4 {[%clk 0:01:53]}  Qxd4 {[%clk 0:00:31]} 27. Rxd4 {[%clk 0:01:53]}  Rxb2 {[%clk 0:00:31]} 28. a4 {[%clk 0:01:53]}  Rd6 {[%clk 0:00:29]} 29. h4 {[%clk 0:01:51]}  g6 {[%clk 0:00:27]} 30. Rc1 {[%clk 0:01:48]}  Rbb6 {[%clk 0:00:18]} 31. Rc7 {[%clk 0:01:46]}  a6 {[%clk 0:00:18]} 32. Kh2 {[%clk 0:01:46]}  Kg7 {[%clk 0:00:18]} 33. Kg3 {[%clk 0:01:46]}  Kf6 {[%clk 0:00:19]} 34. Rf4+ {[%clk 0:01:46]}  Ke5 {[%clk 0:00:18]} 35. Rcxf7 {[%clk 0:01:38]}  h5 {[%clk 0:00:18]} 36. Re4+ {[%clk 0:01:25]}  Kxd5 {[%clk 0:00:18]} 37. Kf4 {[%clk 0:01:25]}  Rb2 {[%clk 0:00:15]} 38. g3 {[%clk 0:01:22]}  Kc6 {[%clk 0:00:06]} 39. Kg5 {[%clk 0:01:08]}  Rg2 {[%clk 0:00:04]} 40. g4 {[%clk 0:01:09]}  hxg4 {[%clk 0:00:04]} 41. fxg4 {[%clk 0:01:08]}  Rc2 {[%clk 0:00:03]} 42. Rf6 {[%clk 0:01:07]}  Rc5+ {[%clk 0:00:02]} 43. Kxg6 {[%clk 0:01:08]}  Rxf6+ {[%clk 0:00:01]} 44. Kxf6 {[%clk 0:01:09]}  Rc2 {[%clk 0:00:01]} 45. h5 {[%clk 0:01:08]}  Kd7 {[%clk 0:00:01]} 46. h6 {[%clk 0:01:08]}  Rh2 {[%clk 0:00:01]} 47. Kg7 {[%clk 0:01:09]}  Kd6 {[%clk 0:00:01]} 48. h7 {[%clk 0:01:09]}  Kd5 {[%clk 0:00:02]} 49. Re8 {[%clk 0:01:09]}  Rh4 {[%clk 0:00:03]} 50. g5 {[%clk 0:01:08]}  Rg4 {[%clk 0:00:04]} 51. g6 {[%clk 0:01:09]}  Rh4 {[%clk 0:00:03]} 52. h8=Q {[%clk 0:01:09]}  Re4 {[%clk 0:00:04]} 53. Rxe4 {[%clk 0:01:09]} 1-0


[Site "https://www.chess.com"]

[Event "Titled Tuesday Blitz August 16 Late 2022"]
[White "Karaev, Seit-Amet"]
[Black "Petrovic, Aleksa"]
[WhiteFideId "4169549"]
[BlackFideId "967629"]
[WhiteElo "2272"]
[BlackElo "2262"]
[Result "1-0"]
[Round "10"]
[TimeControl "180+1"]
[Date "2022.08.16"]
[WhiteClock "0:01:35"]
[BlackClock "0:01:07"]

1. e4 {[%clk 0:02:56]}  c5 {[%clk 0:02:59]} 2. Nf3 {[%clk 0:02:56]}  e6 {[%clk 0:03:00]} 3. d4 {[%clk 0:02:57]}  cxd4 {[%clk 0:03:00]} 4. Nxd4 {[%clk 0:02:57]}  a6 {[%clk 0:03:01]} 5. Nc3 {[%clk 0:02:58]}  Qc7 {[%clk 0:03:01]} 6. a3 {[%clk 0:02:58]}  Nf6 {[%clk 0:03:00]} 7. Bg5 {[%clk 0:02:51]}  Nc6 {[%clk 0:02:51]} 8. Qd2 {[%clk 0:02:49]}  Nxe4 {[%clk 0:02:33]} 9. Nxe4 {[%clk 0:02:44]}  Qe5 {[%clk 0:02:33]} 10. O-O-O {[%clk 0:02:37]}  Qxe4 {[%clk 0:02:33]} 11. Nf3 {[%clk 0:02:17]}  Ne5 {[%clk 0:02:15]} 12. Nxe5 {[%clk 0:02:14]}  Qxe5 {[%clk 0:02:16]} 13. f4 {[%clk 0:02:14]}  Qc7 {[%clk 0:02:09]} 14. f5 {[%clk 0:02:06]}  Be7 {[%clk 0:02:03]} 15. Bxe7 {[%clk 0:02:03]}  Kxe7 {[%clk 0:02:04]} 16. Qg5+ {[%clk 0:02:03]}  Ke8 {[%clk 0:01:39]} 17. Qxg7 {[%clk 0:01:57]}  Qf4+ {[%clk 0:01:31]} 18. Kb1 {[%clk 0:01:56]}  Rf8 {[%clk 0:01:32]} 19. Bd3 {[%clk 0:01:44]}  b5 {[%clk 0:01:25]} 20. Rhf1 {[%clk 0:01:41]}  Qxh2 {[%clk 0:01:19]} 21. fxe6 {[%clk 0:01:39]}  dxe6 {[%clk 0:01:13]} 22. Be4 {[%clk 0:01:37]}  Ra7 {[%clk 0:01:07]} 23. Bc6+ {[%clk 0:01:35]} 1-0


[Site "https://www.chess.com"]

[Event "Titled Tuesday Blitz August 16 Late 2022"]
[White "Kim, Sergey"]
[Black "Omariev, Maksim"]
[WhiteFideId "13700570"]
[BlackFideId "4193423"]
[WhiteElo "2295"]
[BlackElo "2304"]
[Result "1-0"]
[Round "10"]
[TimeControl "180+1"]
[Date "2022.08.18"]
[WhiteClock "0:00:00"]
[BlackClock "0:00:00"]

1. d4 {[%clk 0:00:00]}  d5 {[%clk 0:00:00]} 2. c4 {[%clk 0:00:00]}  e6 {[%clk 0:00:00]} 3. Nc3 {[%clk 0:00:00]}  Nf6 {[%clk 0:00:00]} 4. Nf3 {[%clk 0:00:00]}  Be7 {[%clk 0:00:00]} 5. Bf4 {[%clk 0:00:00]}  O-O {[%clk 0:00:00]} 6. e3 {[%clk 0:00:00]}  Nh5 {[%clk 0:00:00]} 7. Be5 {[%clk 0:00:00]}  Nc6 {[%clk 0:00:00]} 8. Bd3 {[%clk 0:00:00]}  Nxe5 {[%clk 0:00:00]} 9. dxe5 {[%clk 0:00:00]}  dxc4 {[%clk 0:00:00]} 10. Bxc4 {[%clk 0:00:00]}  Qxd1+ {[%clk 0:00:00]} 11. Rxd1 {[%clk 0:00:00]}  g6 {[%clk 0:00:00]} 12. Nb5 {[%clk 0:00:00]}  Bb4+ {[%clk 0:00:00]} 13. Ke2 {[%clk 0:00:00]}  Ba5 {[%clk 0:00:00]} 14. Ng5 {[%clk 0:00:00]}  a6 {[%clk 0:00:00]} 15. Nd4 {[%clk 0:00:00]}  b5 {[%clk 0:00:00]} 16. Bd3 {[%clk 0:00:00]}  Bb7 {[%clk 0:00:00]} 17. Be4 {[%clk 0:00:00]}  Bxe4 {[%clk 0:00:00]} 18. Nxe4 {[%clk 0:00:00]}  Bb6 {[%clk 0:00:00]} 19. Nc6 {[%clk 0:00:00]}  f5 {[%clk 0:00:00]} 20. Ng5 {[%clk 0:00:00]}  Ng7 {[%clk 0:00:00]} 21. Rd7 {[%clk 0:00:00]}  Rae8 {[%clk 0:00:00]} 22. f4 {[%clk 0:00:00]}  h6 {[%clk 0:00:00]} 23. Nf3 {[%clk 0:00:00]}  Rf7 {[%clk 0:00:00]} 24. Rhd1 {[%clk 0:00:00]}  Ref8 {[%clk 0:00:00]} 25. h3 {[%clk 0:00:00]}  Rxd7 {[%clk 0:00:00]} 26. Rxd7 {[%clk 0:00:00]}  Rf7 {[%clk 0:00:00]} 27. Rd8+ {[%clk 0:00:00]}  Kh7 {[%clk 0:00:00]} 28. g4 {[%clk 0:00:00]}  Bc5 {[%clk 0:00:00]} 29. a3 {[%clk 0:00:00]}  Bf8 {[%clk 0:00:00]} 30. b4 {[%clk 0:00:00]}  Kg8 {[%clk 0:00:00]} 31. Nfd4 {[%clk 0:00:00]}  Kh7 {[%clk 0:00:00]} 32. Ra8 {[%clk 0:00:00]}  g5 {[%clk 0:00:00]} 33. Kf3 {[%clk 0:00:00]}  fxg4+ {[%clk 0:00:00]} 34. hxg4 {[%clk 0:00:00]}  gxf4 {[%clk 0:00:00]} 35. exf4 {[%clk 0:00:00]}  h5 {[%clk 0:00:00]} 36. g5 {[%clk 0:00:00]}  Kg6 {[%clk 0:00:00]} 37. Ke4 {[%clk 0:00:00]}  Nf5 {[%clk 0:00:00]} 38. Nd8 {[%clk 0:00:00]}  Rd7 {[%clk 0:00:00]} 39. N8xe6 {[%clk 0:00:00]}  Nxd4 {[%clk 0:00:00]} 40. Nxf8+ {[%clk 0:00:00]}  Kf7 {[%clk 0:00:00]} 41. Nxd7 {[%clk 0:00:00]} 1-0


[Site "https://www.chess.com"]

[Event "Titled Tuesday Blitz August 16 Late 2022"]
[White "Leenhouts, Koen"]
[Black "Zenin, Dmitry"]
[WhiteFideId "1008439"]
[BlackFideId "4127897"]
[WhiteElo "2409"]
[BlackElo "2215"]
[Result "0-1"]
[Round "10"]
[TimeControl "180+1"]
[Date "2022.08.18"]
[WhiteClock "0:00:00"]
[BlackClock "0:00:00"]

1. e4 {[%clk 0:00:00]}  g6 {[%clk 0:00:00]} 2. d4 {[%clk 0:00:00]}  Bg7 {[%clk 0:00:00]} 3. Nc3 {[%clk 0:00:00]}  d6 {[%clk 0:00:00]} 4. h4 {[%clk 0:00:00]}  Nc6 {[%clk 0:00:00]} 5. Be3 {[%clk 0:00:00]}  e5 {[%clk 0:00:00]} 6. d5 {[%clk 0:00:00]}  Nd4 {[%clk 0:00:00]} 7. Nge2 {[%clk 0:00:00]}  c5 {[%clk 0:00:00]} 8. dxc6 {[%clk 0:00:00]}  Nxc6 {[%clk 0:00:00]} 9. h5 {[%clk 0:00:00]}  Nh6 {[%clk 0:00:00]} 10. Nb5 {[%clk 0:00:00]}  Ke7 {[%clk 0:00:00]} 11. Nec3 {[%clk 0:00:00]}  Be6 {[%clk 0:00:00]} 12. Be2 {[%clk 0:00:00]}  a6 {[%clk 0:00:00]} 13. Na3 {[%clk 0:00:00]}  b5 {[%clk 0:00:00]} 14. Nd5+ {[%clk 0:00:00]}  Kf8 {[%clk 0:00:00]} 15. Qd2 {[%clk 0:00:00]}  Ng8 {[%clk 0:00:00]} 16. h6 {[%clk 0:00:00]}  Bf6 {[%clk 0:00:00]} 17. Nxf6 {[%clk 0:00:00]}  Nxf6 {[%clk 0:00:00]} 18. f3 {[%clk 0:00:00]}  Nh5 {[%clk 0:00:00]} 19. O-O-O {[%clk 0:00:00]}  Ke7 {[%clk 0:00:00]} 20. Rxh5 {[%clk 0:00:00]}  gxh5 {[%clk 0:00:00]} 21. c3 {[%clk 0:00:00]}  f6 {[%clk 0:00:00]} 22. Kb1 {[%clk 0:00:00]}  Rg8 {[%clk 0:00:00]} 23. Bf1 {[%clk 0:00:00]}  Rc8 {[%clk 0:00:00]} 24. Nc2 {[%clk 0:00:00]}  Na5 {[%clk 0:00:00]} 25. Nb4 {[%clk 0:00:00]}  Nc4 {[%clk 0:00:00]} 26. Bxc4 {[%clk 0:00:00]}  bxc4 {[%clk 0:00:00]} 27. Nxa6 {[%clk 0:00:00]}  Qa5 {[%clk 0:00:00]} 28. Nb4 {[%clk 0:00:00]}  Qc7 {[%clk 0:00:00]} 29. f4 {[%clk 0:00:00]}  Rg4 {[%clk 0:00:00]} 30. Qf2 {[%clk 0:00:00]}  Rcg8 {[%clk 0:00:00]} 31. fxe5 {[%clk 0:00:00]}  fxe5 {[%clk 0:00:00]} 32. Rf1 {[%clk 0:00:00]}  Ke8 {[%clk 0:00:00]} 33. Qf6 {[%clk 0:00:00]}  Qe7 {[%clk 0:00:00]} 34. Nc6 {[%clk 0:00:00]}  Qxf6 {[%clk 0:00:00]} 35. Rxf6 {[%clk 0:00:00]}  Kd7 {[%clk 0:00:00]} 36. Nb4 {[%clk 0:00:00]}  Rxg2 {[%clk 0:00:00]} 37. a4 {[%clk 0:00:00]}  Re2 {[%clk 0:00:00]} 38. Bb6 {[%clk 0:00:00]}  Rgg2 {[%clk 0:00:00]} 39. Rf8 {[%clk 0:00:00]}  Rxb2+ {[%clk 0:00:00]} 40. Kc1 {[%clk 0:00:00]}  Rbe2 {[%clk 0:00:00]} 41. Rd8+ {[%clk 0:00:00]}  Ke7 {[%clk 0:00:00]} 42. Nc6+ {[%clk 0:00:00]}  Kf6 {[%clk 0:00:00]} 43. Rf8+ {[%clk 0:00:00]}  Kg6 {[%clk 0:00:00]} 44. Kd1 {[%clk 0:00:00]}  Ra2 {[%clk 0:00:00]} 45. Ne7+ {[%clk 0:00:00]}  Kxh6 {[%clk 0:00:00]} 46. Be3+ {[%clk 0:00:00]}  Kg7 {[%clk 0:00:00]} 0-1


[Site "https://www.chess.com"]

[Event "Titled Tuesday Blitz August 16 Late 2022"]
[White "Lehtosaari, Mauri"]
[Black "Ozalp, Burak"]
[WhiteFideId "501999"]
[BlackFideId "6314210"]
[WhiteElo "2200"]
[BlackElo "1854"]
[Result "0-1"]
[Round "10"]
[TimeControl "180+1"]
[Date "2022.08.18"]
[WhiteClock "0:00:00"]
[BlackClock "0:00:00"]

1. d4 {[%clk 0:00:00]}  g6 {[%clk 0:00:00]} 2. Nf3 {[%clk 0:00:00]}  Bg7 {[%clk 0:00:00]} 3. Bg5 {[%clk 0:00:00]}  d6 {[%clk 0:00:00]} 4. c3 {[%clk 0:00:00]}  Nd7 {[%clk 0:00:00]} 5. Nbd2 {[%clk 0:00:00]}  Ngf6 {[%clk 0:00:00]} 6. e3 {[%clk 0:00:00]}  O-O {[%clk 0:00:00]} 7. Bc4 {[%clk 0:00:00]}  a6 {[%clk 0:00:00]} 8. a4 {[%clk 0:00:00]}  b6 {[%clk 0:00:00]} 9. O-O {[%clk 0:00:00]}  Bb7 {[%clk 0:00:00]} 10. Qc2 {[%clk 0:00:00]}  c5 {[%clk 0:00:00]} 11. Rfe1 {[%clk 0:00:00]}  Rc8 {[%clk 0:00:00]} 12. Qd3 {[%clk 0:00:00]}  Ra8 {[%clk 0:00:00]} 13. Rad1 {[%clk 0:00:00]}  Qc7 {[%clk 0:00:00]} 14. Ba2 {[%clk 0:00:00]}  b5 {[%clk 0:00:00]} 15. e4 {[%clk 0:00:00]}  c4 {[%clk 0:00:00]} 16. Qc2 {[%clk 0:00:00]}  e5 {[%clk 0:00:00]} 17. d5 {[%clk 0:00:00]}  h6 {[%clk 0:00:00]} 18. Be3 {[%clk 0:00:00]}  Nh5 {[%clk 0:00:00]} 19. b3 {[%clk 0:00:00]}  cxb3 {[%clk 0:00:00]} 20. Bxb3 {[%clk 0:00:00]}  Nc5 {[%clk 0:00:00]} 21. axb5 {[%clk 0:00:00]}  axb5 {[%clk 0:00:00]} 22. Ra1 {[%clk 0:00:00]}  f5 {[%clk 0:00:00]} 23. Bxc5 {[%clk 0:00:00]}  Qxc5 {[%clk 0:00:00]} 24. Rxa8 {[%clk 0:00:00]}  Bxa8 {[%clk 0:00:00]} 25. exf5 {[%clk 0:00:00]}  gxf5 {[%clk 0:00:00]} 26. Nh4 {[%clk 0:00:00]}  e4 {[%clk 0:00:00]} 27. c4 {[%clk 0:00:00]}  b4 {[%clk 0:00:00]} 28. g3 {[%clk 0:00:00]}  Bd4 {[%clk 0:00:00]} 29. Nf1 {[%clk 0:00:00]}  f4 {[%clk 0:00:00]} 30. Qxe4 {[%clk 0:00:00]}  Bxf2+ {[%clk 0:00:00]} 31. Kg2 {[%clk 0:00:00]}  f3+ {[%clk 0:00:00]} 32. Nxf3 {[%clk 0:00:00]}  Bxe1 {[%clk 0:00:00]} 33. Qe6+ {[%clk 0:00:00]}  Kg7 {[%clk 0:00:00]} 34. Qxe1 {[%clk 0:00:00]}  Nf6 {[%clk 0:00:00]} 35. Ne3 {[%clk 0:00:00]}  Re8 {[%clk 0:00:00]} 36. Nf5+ {[%clk 0:00:00]}  Kg6 {[%clk 0:00:00]} 37. N3h4+ {[%clk 0:00:00]}  Kh7 {[%clk 0:00:00]} 38. Qf1 {[%clk 0:00:00]}  Qd4 {[%clk 0:00:00]} 39. Qf3 {[%clk 0:00:00]}  Re3 {[%clk 0:00:00]} 40. Qf4 {[%clk 0:00:00]}  Qxf4 {[%clk 0:00:00]} 41. gxf4 {[%clk 0:00:00]}  Rxb3 {[%clk 0:00:00]} 42. Nxd6 {[%clk 0:00:00]}  Rc3 {[%clk 0:00:00]} 0-1


[Site "https://www.chess.com"]

[Event "Titled Tuesday Blitz August 16 Late 2022"]
[White "Lenderman, Aleksandr"]
[Black "Bilych, Olexiy"]
[WhiteFideId "2021285"]
[BlackFideId "14156504"]
[WhiteElo "2607"]
[BlackElo "2157"]
[Result "1-0"]
[Round "10"]
[TimeControl "180+1"]
[Date "2022.08.16"]
[WhiteClock "0:00:23"]
[BlackClock "0:00:05"]

1. d4 {[%clk 0:03:00]}  Nf6 {[%clk 0:03:00]} 2. c4 {[%clk 0:03:00]}  e6 {[%clk 0:03:00]} 3. Nf3 {[%clk 0:02:58]}  d5 {[%clk 0:03:00]} 4. e3 {[%clk 0:02:58]}  Be7 {[%clk 0:02:56]} 5. b3 {[%clk 0:02:57]}  O-O {[%clk 0:02:53]} 6. Nc3 {[%clk 0:02:54]}  c5 {[%clk 0:02:52]} 7. dxc5 {[%clk 0:02:52]}  Bxc5 {[%clk 0:02:51]} 8. cxd5 {[%clk 0:02:50]}  exd5 {[%clk 0:02:50]} 9. Bd3 {[%clk 0:02:50]}  Nc6 {[%clk 0:02:45]} 10. O-O {[%clk 0:02:49]}  Bg4 {[%clk 0:02:39]} 11. Be2 {[%clk 0:02:44]}  Re8 {[%clk 0:02:13]} 12. Bb2 {[%clk 0:02:42]}  a6 {[%clk 0:02:03]} 13. Rc1 {[%clk 0:02:35]}  Qd6 {[%clk 0:01:59]} 14. Na4 {[%clk 0:02:23]}  Ba7 {[%clk 0:01:58]} 15. Bxf6 {[%clk 0:02:21]}  Qxf6 {[%clk 0:01:55]} 16. Nc5 {[%clk 0:02:11]}  Bxc5 {[%clk 0:01:10]} 17. Rxc5 {[%clk 0:02:10]}  Be6 {[%clk 0:01:09]} 18. Nd4 {[%clk 0:02:04]}  Nxd4 {[%clk 0:01:08]} 19. Qxd4 {[%clk 0:01:54]}  Qxd4 {[%clk 0:01:06]} 20. exd4 {[%clk 0:01:54]}  Rac8 {[%clk 0:01:03]} 21. Rfc1 {[%clk 0:01:37]}  Rxc5 {[%clk 0:01:03]} 22. Rxc5 {[%clk 0:01:38]}  Rc8 {[%clk 0:01:01]} 23. Bf3 {[%clk 0:01:39]}  Rxc5 {[%clk 0:00:57]} 24. dxc5 {[%clk 0:01:40]}  Kf8 {[%clk 0:00:55]} 25. Kf1 {[%clk 0:01:40]}  Ke7 {[%clk 0:00:55]} 26. Ke2 {[%clk 0:01:41]}  Kf6 {[%clk 0:00:45]} 27. Kd2 {[%clk 0:01:19]}  Ke5 {[%clk 0:00:43]} 28. Kc3 {[%clk 0:01:19]}  d4+ {[%clk 0:00:30]} 29. Kd3 {[%clk 0:01:19]}  Bd5 {[%clk 0:00:30]} 30. Bh5 {[%clk 0:00:38]}  g6 {[%clk 0:00:26]} 31. f4+ {[%clk 0:00:38]}  Kxf4 {[%clk 0:00:23]} 32. Kxd4 {[%clk 0:00:39]}  Bxg2 {[%clk 0:00:19]} 33. Be2 {[%clk 0:00:39]}  Bc6 {[%clk 0:00:18]} 34. a4 {[%clk 0:00:32]}  g5 {[%clk 0:00:18]} 35. a5 {[%clk 0:00:28]}  g4 {[%clk 0:00:16]} 36. Bc4 {[%clk 0:00:29]}  f5 {[%clk 0:00:16]} 37. Bd5 {[%clk 0:00:29]}  g3 {[%clk 0:00:14]} 38. hxg3+ {[%clk 0:00:24]}  Kxg3 {[%clk 0:00:15]} 39. Bxc6 {[%clk 0:00:24]}  bxc6 {[%clk 0:00:16]} 40. b4 {[%clk 0:00:24]}  f4 {[%clk 0:00:16]} 41. b5 {[%clk 0:00:25]}  cxb5 {[%clk 0:00:09]} 42. c6 {[%clk 0:00:25]}  f3 {[%clk 0:00:10]} 43. c7 {[%clk 0:00:26]}  f2 {[%clk 0:00:10]} 44. c8=Q {[%clk 0:00:27]}  f1=Q {[%clk 0:00:11]} 45. Qxa6 {[%clk 0:00:24]}  Qc4+ {[%clk 0:00:11]} 46. Ke5 {[%clk 0:00:24]}  Qc5+ {[%clk 0:00:09]} 47. Ke6 {[%clk 0:00:24]}  Qc4+ {[%clk 0:00:08]} 48. Kd7 {[%clk 0:00:21]}  Qf7+ {[%clk 0:00:07]} 49. Kc6 {[%clk 0:00:21]}  Qe6+ {[%clk 0:00:08]} 50. Kxb5 {[%clk 0:00:22]}  Qe2+ {[%clk 0:00:08]} 51. Kb6 {[%clk 0:00:21]}  Qe6+ {[%clk 0:00:04]} 52. Ka7 {[%clk 0:00:21]}  Qd7+ {[%clk 0:00:04]} 53. Qb7 {[%clk 0:00:21]}  Qd4+ {[%clk 0:00:03]} 54. Ka8 {[%clk 0:00:20]}  Qd8+ {[%clk 0:00:03]} 55. Qb8+ {[%clk 0:00:21]}  Qxb8+ {[%clk 0:00:03]} 56. Kxb8 {[%clk 0:00:21]}  h5 {[%clk 0:00:03]} 57. a6 {[%clk 0:00:22]}  h4 {[%clk 0:00:04]} 58. a7 {[%clk 0:00:23]}  h3 {[%clk 0:00:05]} 59. a8=Q {[%clk 0:00:23]}  Kh2 {[%clk 0:00:05]} 60. Qf3 {[%clk 0:00:23]}  Kg1 {[%clk 0:00:04]} 61. Qxh3 {[%clk 0:00:23]}  Kf2 {[%clk 0:00:05]} 62. Kc7 {[%clk 0:00:23]} 1-0


[Site "https://www.chess.com"]

[Event "Titled Tuesday Blitz August 16 Late 2022"]
[White "Lopez Perdomo, Juan David"]
[Black "Floresvillar Gonzalez, Luis Migu"]
[WhiteFideId "4405137"]
[BlackFideId "5100542"]
[WhiteElo "1965"]
[BlackElo "2040"]
[Result "0-1"]
[Round "10"]
[TimeControl "180+1"]
[Date "2022.08.18"]
[WhiteClock "0:00:00"]
[BlackClock "0:00:00"]

1. e4 {[%clk 0:00:00]}  c6 {[%clk 0:00:00]} 2. d4 {[%clk 0:00:00]}  d5 {[%clk 0:00:00]} 3. Nc3 {[%clk 0:00:00]}  dxe4 {[%clk 0:00:00]} 4. Nxe4 {[%clk 0:00:00]}  Bf5 {[%clk 0:00:00]} 5. Ng3 {[%clk 0:00:00]}  Bg6 {[%clk 0:00:00]} 6. Nf3 {[%clk 0:00:00]}  Nd7 {[%clk 0:00:00]} 7. Bd3 {[%clk 0:00:00]}  e6 {[%clk 0:00:00]} 8. O-O {[%clk 0:00:00]}  Ngf6 {[%clk 0:00:00]} 9. Bg5 {[%clk 0:00:00]}  Be7 {[%clk 0:00:00]} 10. Re1 {[%clk 0:00:00]}  O-O {[%clk 0:00:00]} 11. h4 {[%clk 0:00:00]}  Bxd3 {[%clk 0:00:00]} 12. Qxd3 {[%clk 0:00:00]}  h6 {[%clk 0:00:00]} 13. Bd2 {[%clk 0:00:00]}  Qb6 {[%clk 0:00:00]} 14. c3 {[%clk 0:00:00]}  Rad8 {[%clk 0:00:00]} 15. Qc2 {[%clk 0:00:00]}  a5 {[%clk 0:00:00]} 16. Qc1 {[%clk 0:00:00]}  Kh7 {[%clk 0:00:00]} 17. Ne5 {[%clk 0:00:00]}  Nxe5 {[%clk 0:00:00]} 18. Rxe5 {[%clk 0:00:00]}  Bd6 {[%clk 0:00:00]} 19. Re3 {[%clk 0:00:00]}  Bxg3 {[%clk 0:00:00]} 20. Rxg3 {[%clk 0:00:00]}  Ne4 {[%clk 0:00:00]} 21. Qc2 {[%clk 0:00:00]}  f5 {[%clk 0:00:00]} 22. Re3 {[%clk 0:00:00]}  Rfe8 {[%clk 0:00:00]} 23. Rae1 {[%clk 0:00:00]}  c5 {[%clk 0:00:00]} 24. Rxe4 {[%clk 0:00:00]}  fxe4 {[%clk 0:00:00]} 25. Rxe4 {[%clk 0:00:00]}  Kh8 {[%clk 0:00:00]} 26. Qc1 {[%clk 0:00:00]}  e5 {[%clk 0:00:00]} 27. dxc5 {[%clk 0:00:00]}  Qg6 {[%clk 0:00:00]} 28. Re2 {[%clk 0:00:00]}  Qf6 {[%clk 0:00:00]} 29. g3 {[%clk 0:00:00]}  Rf8 {[%clk 0:00:00]} 30. Qe1 {[%clk 0:00:00]}  Rd5 {[%clk 0:00:00]} 31. Be3 {[%clk 0:00:00]}  Rfd8 {[%clk 0:00:00]} 32. Kg2 {[%clk 0:00:00]}  Rd1 {[%clk 0:00:00]} 33. Bg5 {[%clk 0:00:00]}  hxg5 {[%clk 0:00:00]} 0-1


[Site "https://www.chess.com"]

[Event "Titled Tuesday Blitz August 16 Late 2022"]
[White "Maltsevskaya, Aleksandra"]
[Black "D`Arruda, Ricardo D."]
[WhiteFideId "24174041"]
[BlackFideId "100692"]
[WhiteElo "2243"]
[BlackElo "2509"]
[Result "1/2-1/2"]
[Round "10"]
[TimeControl "180+1"]
[Date "2022.08.16"]
[WhiteClock "0:00:03"]
[BlackClock "0:00:32"]

1. Nf3 {[%clk 0:03:00]}  d5 {[%clk 0:02:58]} 2. g3 {[%clk 0:03:01]}  Nf6 {[%clk 0:02:56]} 3. Bg2 {[%clk 0:03:02]}  c6 {[%clk 0:02:55]} 4. O-O {[%clk 0:03:03]}  g6 {[%clk 0:02:55]} 5. d3 {[%clk 0:03:03]}  Bg7 {[%clk 0:02:55]} 6. Nbd2 {[%clk 0:03:04]}  O-O {[%clk 0:02:55]} 7. e4 {[%clk 0:03:05]}  dxe4 {[%clk 0:02:52]} 8. dxe4 {[%clk 0:03:06]}  Nbd7 {[%clk 0:02:52]} 9. Qe2 {[%clk 0:03:07]}  e5 {[%clk 0:02:52]} 10. Rd1 {[%clk 0:03:08]}  Qc7 {[%clk 0:02:48]} 11. a4 {[%clk 0:03:08]}  Re8 {[%clk 0:02:46]} 12. Nc4 {[%clk 0:03:07]}  Bf8 {[%clk 0:02:37]} 13. h3 {[%clk 0:02:52]}  Nb6 {[%clk 0:02:21]} 14. Bg5 {[%clk 0:02:45]}  Kg7 {[%clk 0:02:05]} 15. h4 {[%clk 0:02:28]}  h6 {[%clk 0:02:00]} 16. Bd2 {[%clk 0:02:21]}  Nxc4 {[%clk 0:01:59]} 17. Qxc4 {[%clk 0:02:21]}  Be6 {[%clk 0:01:55]} 18. Qe2 {[%clk 0:02:21]}  Nd7 {[%clk 0:01:52]} 19. Bc3 {[%clk 0:02:10]}  Kg8 {[%clk 0:01:52]} 20. Kh2 {[%clk 0:02:04]}  Bg7 {[%clk 0:01:52]} 21. Bh3 {[%clk 0:02:01]}  Bxh3 {[%clk 0:01:49]} 22. Kxh3 {[%clk 0:02:02]}  Rad8 {[%clk 0:01:46]} 23. Kg2 {[%clk 0:02:02]}  Nc5 {[%clk 0:01:45]} 24. b3 {[%clk 0:01:59]}  Ne6 {[%clk 0:01:45]} 25. Rxd8 {[%clk 0:01:58]}  Rxd8 {[%clk 0:01:44]} 26. Rd1 {[%clk 0:01:58]}  Nd4 {[%clk 0:01:36]} 27. Bxd4 {[%clk 0:01:58]}  exd4 {[%clk 0:01:37]} 28. Qc4 {[%clk 0:01:52]}  c5 {[%clk 0:01:34]} 29. b4 {[%clk 0:01:48]}  b6 {[%clk 0:01:34]} 30. a5 {[%clk 0:01:40]}  Qe7 {[%clk 0:01:33]} 31. e5 {[%clk 0:01:37]}  cxb4 {[%clk 0:01:21]} 32. axb6 {[%clk 0:01:36]}  axb6 {[%clk 0:01:22]} 33. Rxd4 {[%clk 0:01:36]}  Rxd4 {[%clk 0:01:17]} 34. Qxd4 {[%clk 0:01:37]}  Qc5 {[%clk 0:01:11]} 35. Qd8+ {[%clk 0:01:26]}  Kh7 {[%clk 0:01:10]} 36. e6 {[%clk 0:01:11]}  fxe6 {[%clk 0:01:06]} 37. Qd7 {[%clk 0:01:11]}  Qd5 {[%clk 0:01:04]} 38. Qc7 {[%clk 0:01:09]}  b5 {[%clk 0:01:03]} 39. Qf7 {[%clk 0:00:59]}  Qe4 {[%clk 0:00:59]} 40. Kh2 {[%clk 0:00:47]}  Qxc2 {[%clk 0:00:49]} 41. Nd4 {[%clk 0:00:45]}  Qb2 {[%clk 0:00:32]} 42. Nxe6 {[%clk 0:00:44]}  Qf6 {[%clk 0:00:32]} 43. Nf8+ {[%clk 0:00:15]}  Kh8 {[%clk 0:00:31]} 44. Nxg6+ {[%clk 0:00:15]}  Kh7 {[%clk 0:00:32]} 45. Nf8+ {[%clk 0:00:13]}  Kh8 {[%clk 0:00:32]} 46. Ng6+ {[%clk 0:00:05]}  Kh7 {[%clk 0:00:32]} 47. Nf8+ {[%clk 0:00:03]}  Kh8 {[%clk 0:00:32]} 48. Ng6+ {[%clk 0:00:03]} 1/2-1/2


[Site "https://www.chess.com"]